bitfinex-derivatives/quotes_BTCF0:USTF0_20250411
["timestamp","ask_amount","ask_price","bid_price","bid_amount"]
[1744390126097,0.120632,82964.0,82963.0,0.5987149]
[1744390126397,0.120592,82964.0,82963.0,0.5439149]
[1744390126595,0.233992,82964.0,82963.0,0.1254149]
[1744390126892,0.3608,82976.0,82963.0,0.0048214]
[1744390127092,0.3608,82976.0,82973.0,0.1808683]
[1744390127093,0.1134,82974.0,82973.0,0.1808683]
[1744390127292,0.2339775,82974.0,82973.0,0.0602894]
[1744390127492,0.1205789,82973.0,82972.0,0.0578]
[1744390127993,0.2339789,82973.0,82972.0,0.0578]
[1744390128210,0.2339789,82973.0,82970.0,0.1205832]
[1744390128211,0.1205818,82971.0,82970.0,0.1205832]
[1744390128388,0.1205818,82971.0,82966.0,0.120588]
[1744390128389,0.1808829,82967.0,82966.0,0.120588]
[1744390128895,0.00018075,82983.0,82979.0,0.0602846]
[1744390129095,0.00018075,82983.0,82982.0,0.4813659]
[1744390129294,2e-08,82986.0,82985.0,0.1205615]
[1744390129498,9.842e-05,83014.0,83003.0,0.1205354]
[1744390129692,9.842e-05,83009.0,83003.0,0.4813354]
[1744390129896,9.842e-05,83014.0,83003.0,0.4813354]
[1744390129897,0.1205215,83013.0,83003.0,0.4813354]
[1744390130096,0.00504,83004.0,83003.0,0.4813354]
[1744390130488,0.00023476,83012.0,83011.0,0.1205237]
[1744390130704,0.060252,83025.0,83011.0,0.1205237]
[1744390130705,0.0602448,83035.0,83016.0,0.1205165]
[1744390130898,0.25280385,83037.0,83016.0,0.1205165]
[1744390130899,0.32548214,83017.0,83016.0,0.1205165]
[1744390131200,0.32552214,83017.0,83016.0,0.1205165]
[1744390132099,0.44603714,83017.0,83016.0,0.1205165]
[1744390132990,0.32552214,83017.0,83010.0,0.1145625]
[1744390133187,0.120531,83006.0,83003.0,0.3608]
[1744390133802,0.120531,83006.0,83005.0,0.241055]
[1744390134101,0.1717647,83008.0,83007.0,0.1205295]
[1744390134300,0.0578,83016.0,83015.0,0.1205179]
[1744390134596,0.1783165,83016.0,83015.0,0.1205179]
[1744390134794,0.2898165,83016.0,83015.0,0.1205179]
[1744390135198,0.2898565,83016.0,83015.0,0.1205179]
[1744390136000,0.2898565,83016.0,83011.0,0.3608]
[1744390136001,0.16934,83016.0,83009.0,0.0602632]
[1744390136304,0.1205252,83010.0,83009.0,0.1807869]
[1744390136507,0.1807957,83008.0,83007.0,0.1205294]
[1744390136703,0.1807957,83008.0,82997.0,0.060272]
[1744390136704,0.0602672,83004.0,82997.0,0.060272]
[1744390136902,0.1808116,83002.0,83001.0,0.1808038]
[1744390137592,0.1205426,82998.0,82997.0,0.060272]
[1744390137799,0.1205455,82996.0,82995.0,0.12072635]
[1744390138401,0.2325455,82996.0,82995.0,0.12072635]
[1744390138797,0.2325455,82996.0,82995.0,0.00018075]
[1744390139204,0.2325455,82996.0,82995.0,0.12072775]
[1744390139902,4e-05,82996.0,82995.0,0.12072775]
[1744390140502,0.0868,83008.0,83005.0,0.1205325]
[1744390140699,0.12071175,83006.0,83005.0,0.1205325]
[1744390141302,0.0602687,83002.0,82998.0,0.0602707]
[1744390141604,0.1205455,82996.0,82995.0,0.12072775]
[1744390142205,0.180816,82998.0,82996.0,0.1205455]
[1744390142206,0.0571,82997.0,82996.0,0.1205455]
[1744390142399,0.00018075,83006.0,82999.0,0.0602706]
[1744390142594,0.12071475,83006.0,83005.0,0.1205325]
[1744390143001,0.23201475,83006.0,83005.0,0.1205325]
[1744390143297,0.23205475,83006.0,83005.0,0.1205325]
[1744390143492,0.00022075,83006.0,83005.0,0.1205325]
[1744390143696,0.00022075,83006.0,83005.0,0.4813325]
[1744390143904,5e-08,83006.0,83005.0,1.1466325]
[1744390144105,1e-08,83006.0,83005.0,1.2592325]
[1744390144303,1e-08,83006.0,83005.0,1.3460325]
[1744390144803,4.001e-05,83006.0,83005.0,1.0092325]
[1744390146302,0.00018005,83014.0,83013.0,0.1205208]
[1744390146508,0.00018005,83014.0,83013.0,0.5967208]
[1744390146811,5.401e-05,83024.0,83023.0,0.1205063]
[1744390147010,0.1205022,83026.0,83025.0,0.1205034]
[1744390147504,0.2321022,83026.0,83025.0,0.1205034]
[1744390148513,0.060249,83029.0,83028.0,0.1204991]
[1744390149410,0.171849,83029.0,83028.0,0.1204991]
[1744390149900,0.1116,83029.0,83028.0,0.1204991]
[1744390150103,0.005,83030.0,83029.0,0.1204976]
[1744390150717,0.1255362,83030.0,83029.0,0.1204976]
[1744390151509,0.2360362,83030.0,83029.0,0.1204976]
[1744390151712,0.1205049,83025.0,83024.0,0.1807539]
[1744390151909,0.1205049,83025.0,83024.0,0.2410056]
[1744390152215,0.2310049,83025.0,83024.0,0.2410056]
[1744390152411,0.1105,83025.0,83024.0,0.2410056]
[1744390152714,0.00504,83030.0,83029.0,0.1204976]
[1744390152905,0.005,83030.0,83029.0,0.1204976]
[1744390153215,0.1255362,83030.0,83029.0,0.1204976]
[1744390153403,0.00504,83030.0,83029.0,0.1204976]
[1744390154512,0.005,83030.0,83029.0,0.1204976]
[1744390154712,0.00504,83030.0,83029.0,0.1204976]
[1744390155107,0.00504,83030.0,83029.0,0.4812976]
[1744390155707,0.1255362,83030.0,83029.0,0.4812976]
[1744390156011,0.00504,83030.0,83029.0,0.4812976]
[1744390156212,0.1826362,83030.0,83029.0,0.4812976]
[1744390156510,0.00504,83030.0,83029.0,0.4812976]
[1744390156910,0.005,83030.0,83029.0,0.4812976]
[1744390157218,0.00504,83030.0,83029.0,0.4812976]
[1744390157711,0.00504,83030.0,83029.0,0.5346976]
[1744390158611,0.00504,83030.0,83029.0,0.4812976]
[1744390159113,0.00504,83030.0,83029.0,0.5346976]
[1744390160117,0.00504,83030.0,83029.0,0.9499976]
[1744390162917,0.1255362,83030.0,83029.0,0.8965976]
[1744390163112,0.00504,83030.0,83029.0,0.8965976]
[1744390163308,0.12044,83030.0,83029.0,0.4812976]
[1744390163513,0.12044,83030.0,83029.0,0.5353976]
[1744390163909,0.00504,83030.0,83029.0,0.5353976]
[1744390164214,0.00504,83030.0,83029.0,0.5910976]
[1744390164520,0.005,83030.0,83029.0,0.5910976]
[1744390164727,0.1254962,83030.0,83029.0,0.4812976]
[1744390165021,0.1254962,83030.0,83021.0,0.1470143]
[1744390165022,0.0602488,83029.0,83023.0,0.1205059]
[1744390165220,0.1205136,83018.0,83005.0,0.0602659]
[1744390165425,0.1205252,83010.0,83009.0,0.33315935]
[1744390165623,0.4813252,83010.0,83009.0,0.33315935]
[1744390165816,0.6513252,83010.0,83009.0,0.21263295]
[1744390166418,0.6513252,83010.0,83009.0,0.12393295]
[1744390166613,0.9013252,83010.0,83009.0,0.12393295]
[1744390167126,0.1205368,83002.0,83001.0,0.12071865]
[1744390167322,0.4813368,83002.0,83001.0,0.12071865]
[1744390167529,0.5969368,83002.0,83001.0,0.12071865]
[1744390168021,0.5969768,83002.0,83001.0,0.12071865]
[1744390168228,0.5969768,83002.0,83001.0,0.00018075]
[1744390168627,0.5969768,83002.0,83001.0,0.12071905]
[1744390168926,0.5969368,83002.0,83001.0,0.12071905]
[1744390169128,0.5969768,83002.0,83001.0,0.12071905]
[1744390169628,0.5969768,83002.0,83001.0,0.00018075]
[1744390170924,0.5969368,83002.0,83001.0,0.12071905]
[1744390171131,0.5969768,83002.0,83001.0,0.12071905]
[1744390171829,0.5969768,83002.0,83001.0,0.00018075]
[1744390172022,0.1205542,82990.0,82989.0,0.12537559]
[1744390172325,0.47644,83002.0,82989.0,0.00481989]
[1744390172528,0.11,83000.0,82999.0,0.1205383]
[1744390172918,0.11,83006.0,83005.0,0.1205325]
[1744390173121,0.0602558,83020.0,83019.0,0.1205121]
[1744390173319,0.1742107,83020.0,83019.0,0.1205121]
[1744390173525,0.2155531,83028.0,83021.0,0.1205092]
[1744390173733,9.842e-05,83023.0,83021.0,0.1205092]
[1744390174025,0.21537235,83025.0,83024.0,0.1205049]
[1744390174228,0.33587575,83025.0,83024.0,0.1205049]
[1744390174615,0.21541235,83025.0,83024.0,0.1205049]
[1744390174821,0.27371235,83025.0,83024.0,0.1205049]
[1744390175427,0.27367235,83025.0,83024.0,0.1205049]
[1744390175624,0.27371235,83025.0,83024.0,0.1205049]
[1744390175928,0.32721235,83025.0,83024.0,0.1205049]
[1744390176723,0.11184,83025.0,83024.0,0.1205049]
[1744390177423,0.2323434,83025.0,83024.0,0.1205049]
[1744390178125,0.2323434,83025.0,83021.0,0.0602546]
[1744390178332,0.1205078,83022.0,83021.0,0.0602546]
[1744390178531,0.0602546,83022.0,83018.0,0.3608]
[1744390178721,0.1205208,83013.0,83011.0,0.00018075]
[1744390179525,0.1205223,83012.0,83011.0,0.00018075]
[1744390179725,0.2281223,83012.0,83011.0,0.00018075]
[1744390179932,0.2281223,83012.0,83011.0,5e-08]
[1744390180228,0.4781223,83012.0,83011.0,5e-08]
[1744390180835,0.2281223,83012.0,83011.0,5e-08]
[1744390181128,0.2281623,83012.0,83011.0,5e-08]
[1744390181729,0.4781623,83012.0,83011.0,5e-08]
[1744390183530,0.5648823,83012.0,83011.0,5e-08]
[1744390183724,0.5649223,83012.0,83011.0,5e-08]
[1744390184231,0.74456748,83012.0,83011.0,5e-08]
[1744390185433,0.65780748,83012.0,83011.0,5e-08]
[1744390185637,0.49456748,83012.0,83011.0,5e-08]
[1744390186527,0.49452748,83012.0,83011.0,5e-08]
[1744390186835,0.49456748,83012.0,83011.0,5e-08]
[1744390187039,0.3149223,83012.0,83011.0,5e-08]
[1744390187233,0.2281623,83012.0,83011.0,5e-08]
[1744390187436,0.2281223,83012.0,83011.0,5e-08]
[1744390187734,0.3149223,83012.0,83011.0,5e-08]
[1744390189434,0.3148823,83012.0,83011.0,5e-08]
[1744390189634,0.3149223,83012.0,83011.0,5e-08]
[1744390189828,0.3149223,83012.0,83011.0,0.12052375]
[1744390190028,0.3149223,83012.0,83011.0,5e-08]
[1744390190229,0.3149223,83012.0,83011.0,0.12052375]
[1744390190230,0.2281623,83012.0,83011.0,0.12052375]
[1744390190741,4e-05,83012.0,83011.0,0.73132375]
[1744390190929,0.120514,83018.0,83017.0,0.120515]
[1744390191234,0.120514,83018.0,83017.0,0.234615]
[1744390191731,0.14374466,83020.0,83019.0,0.1205121]
[1744390192133,0.14374466,83020.0,83019.0,0.2346121]
[1744390192339,0.26425536,83020.0,83019.0,0.2346121]
[1744390192738,0.26429536,83020.0,83019.0,0.0585]
[1744390192931,0.26429536,83020.0,83019.0,0.1790121]
[1744390193136,0.37719536,83020.0,83019.0,0.1790121]
[1744390194034,0.2334507,83020.0,83019.0,0.1790121]
[1744390196828,0.2334507,83020.0,83019.0,0.2328121]
[1744390197242,0.1205507,83020.0,83019.0,0.2328121]
[1744390197441,0.1205107,83020.0,83019.0,0.2328121]
[1744390197639,0.1205507,83020.0,83019.0,0.2328121]
[1744390197838,0.2308507,83020.0,83019.0,0.2328121]
[1744390198032,0.2308507,83020.0,83019.0,0.0585]
[1744390198236,0.1807798,83014.0,83013.0,0.1205208]
[1744390198437,0.1205223,83012.0,83003.0,0.1205345]
[1744390198747,0.1205223,83012.0,83002.0,0.4210682]
[1744390199136,0.1772223,83012.0,83007.0,0.1205282]
[1744390199433,0.2346223,83012.0,83005.0,0.0602655]
[1744390199631,0.2346223,83012.0,83006.0,0.1205307]
[1744390199831,0.2346223,83012.0,83004.0,0.1807992]
[1744390200045,0.2346223,83012.0,83005.0,0.1205323]
[1744390200246,0.2346223,83012.0,83005.0,0.060266]
[1744390200447,0.2346223,83012.0,83007.0,0.1205283]
[1744390200646,0.2346223,83012.0,83011.0,0.12052375]
[1744390200941,0.2346223,83012.0,83011.0,5e-08]
[1744390201148,0.17964518,83017.0,83016.0,0.1205165]
[1744390201645,0.30020018,83017.0,83016.0,0.1205165]
[1744390202032,0.30020018,83017.0,83016.0,0.2339165]
[1744390202439,0.17964518,83017.0,83016.0,0.2339165]
[1744390202647,0.17968518,83017.0,83016.0,0.2339165]
[1744390202840,0.30016018,83017.0,83016.0,0.2339165]
[1744390203044,0.30020018,83017.0,83016.0,0.0578]
[1744390203342,0.1205223,83012.0,83011.0,5e-08]
[1744390203748,0.2325223,83012.0,83011.0,5e-08]
[1744390211346,0.2325223,83012.0,83011.0,0.12052375]
[1744390211541,0.1205223,83012.0,83011.0,0.12052375]
[1744390211743,4e-05,83012.0,83011.0,0.29412375]
[1744390211945,0.33589315,83013.0,83012.0,0.1205223]
[1744390212440,0.33589315,83013.0,83012.0,0.2352223]
[1744390212647,0.44929315,83013.0,83012.0,0.0572]
[1744390212948,0.1205223,83012.0,83011.0,5e-08]
[1744390213356,0.2922223,83012.0,83011.0,5e-08]
[1744390218267,0.2339223,83012.0,83011.0,5e-08]
[1744390218647,0.2339623,83012.0,83011.0,5e-08]
[1744390219050,0.2914623,83012.0,83011.0,5e-08]
[1744390219462,0.3782223,83012.0,83011.0,5e-08]
[1744390220763,0.50238256,83012.0,83011.0,5e-08]
[1744390221651,0.1205542,82990.0,82971.0,0.12238859]
[1744390221959,0.4813542,82990.0,82983.0,0.0479]
[1744390222261,0.4813542,82990.0,82983.0,0.1684641]
[1744390222454,0.5885542,82990.0,82983.0,0.1684641]
[1744390222757,0.120563,82984.0,82983.0,0.0479]
[1744390222950,0.1205659,82982.0,82981.0,0.00018075]
[1744390223155,0.4813659,82982.0,82981.0,0.00018075]
[1744390223560,0.1205789,82973.0,82972.0,0.0479]
[1744390223864,0.120592,82964.0,82952.0,0.35842068]
[1744390224158,0.481392,82964.0,82960.0,0.0513]
[1744390224462,0.481392,82964.0,82961.0,0.1205954]
[1744390224657,0.582092,82964.0,82960.0,0.0513]
[1744390225073,0.221292,82964.0,82961.0,0.1205958]
[1744390225776,0.1206036,82956.0,82951.0,0.0515]
[1744390226063,0.1206036,82956.0,82952.0,0.0513]
[1744390226360,0.1206036,82956.0,82952.0,0.1719092]
[1744390226564,0.2204036,82956.0,82952.0,0.1719092]
[1744390227262,0.2204036,82956.0,82953.0,0.1206078]
[1744390227658,0.2204036,82956.0,82954.0,0.1206055]
[1744390227865,0.2204036,82956.0,82955.0,0.05238075]
[1744390228360,0.2204036,82956.0,82955.0,0.17298585]
[1744390228661,0.2204036,82956.0,82955.0,0.00018075]
[1744390229454,0.1206255,82941.0,82940.0,0.0505]
[1744390229658,0.4814255,82941.0,82940.0,0.0505]
[1744390230856,0.00018075,82949.0,82940.0,0.3005]
[1744390231059,4e-05,82941.0,82940.0,0.0505]
[1744390231260,4e-05,82941.0,82940.0,0.1015]
[1744390231467,0.1206226,82943.0,82940.0,0.3515]
[1744390231658,4e-05,82941.0,82940.0,0.5324401]
[1744390231859,0.1206655,82941.0,82940.0,0.3515]
[1744390232055,0.1206655,82941.0,82940.0,0.4721269]
[1744390232260,0.1206655,82941.0,82940.0,0.1015]
[1744390233357,0.1732655,82941.0,82940.0,0.1015]
[1744390233556,0.1732655,82941.0,82940.0,0.0505]
[1744390233557,0.2217655,82941.0,82940.0,0.0505]
[1744390233763,0.1206298,82938.0,82937.0,0.00482291]
[1744390235558,4e-05,82938.0,82937.0,0.00482291]
[1744390235871,0.1206298,82938.0,82937.0,0.22585381]
[1744390236072,0.1206698,82938.0,82937.0,0.22585381]
[1744390236668,0.1206698,82938.0,82937.0,0.10522291]
[1744390237162,0.1206698,82938.0,82937.0,0.22585421]
[1744390237562,0.1206698,82938.0,82937.0,0.10522291]
[1744390237871,0.1206698,82938.0,82937.0,0.22585421]
[1744390238065,0.1206698,82938.0,82937.0,0.10522291]
[1744390238771,0.1206698,82938.0,82937.0,0.22585421]
[1744390239070,0.1206298,82938.0,82937.0,0.22585421]
[1744390239869,0.1206698,82938.0,82937.0,0.22585421]
[1744390240870,0.1206164,82948.0,82947.0,0.1809236]
[1744390241067,5.401e-05,82950.0,82948.0,0.1206153]
[1744390241473,5.401e-05,82950.0,82948.0,0.4734153]
[1744390242671,0.12079455,82949.0,82948.0,0.4734153]
[1744390242868,0.12079455,82949.0,82948.0,0.2234153]
[1744390243074,0.12079455,82949.0,82948.0,0.1028]
[1744390243265,0.16949455,82949.0,82948.0,0.1028]
[1744390243867,0.22079455,82949.0,82948.0,0.0516]
[1744390244069,0.1206225,82943.0,82942.0,0.0603119]
[1744390244479,0.1693225,82943.0,82942.0,0.0603119]
[1744390244672,0.180944,82940.0,82937.0,0.18576371]
[1744390244977,0.1206298,82938.0,82937.0,0.18576371]
[1744390245680,0.1702298,82938.0,82937.0,0.18576371]
[1744390246271,0.0496,82938.0,82937.0,0.18576371]
[1744390246978,5.401e-05,82950.0,82948.0,0.1206153]
[1744390247273,9.842e-05,82969.0,82968.0,0.1205862]
[1744390247475,9.842e-05,82969.0,82948.0,0.3608]
[1744390247476,0.18017893,82974.0,82973.0,0.1205789]
[1744390247877,0.1205818,82972.0,82971.0,0.1808718]
[1744390248174,0.1205818,82972.0,82971.0,0.0602909]
[1744390248385,0.1689818,82972.0,82971.0,0.0602909]
[1744390248591,0.1004,82972.0,82971.0,0.0602909]
[1744390248786,0.18021893,82974.0,82973.0,0.1205789]
[1744390249189,1e-08,82974.0,82973.0,0.7858789]
[1744390249589,0.00018075,82980.0,82977.0,0.1205731]
[1744390250486,0.1205775,82974.0,82973.0,0.1205777]
[1744390250688,0.00504,82978.0,82977.0,0.1205731]
[1744390250885,0.005,82978.0,82977.0,0.4813731]
[1744390251084,0.00504,82978.0,82977.0,0.4813731]
[1744390251389,0.00504,82978.0,82977.0,0.1205731]
[1744390251782,0.1256117,82978.0,82977.0,0.1205731]
[1744390252092,0.1737117,82978.0,82977.0,0.1205731]
[1744390252590,0.00504,82978.0,82977.0,0.1205731]
[1744390252987,0.1255717,82978.0,82977.0,0.1205731]
[1744390253182,0.1736717,82978.0,82977.0,0.1205731]
[1744390253789,0.1737117,82978.0,82977.0,0.1205731]
[1744390253988,0.05314,82978.0,82977.0,0.1205731]
[1744390254288,0.1737117,82978.0,82977.0,0.4813731]
[1744390254683,0.05314,82978.0,82977.0,0.4813731]
[1744390254888,0.005,82978.0,82977.0,0.4813731]
[1744390255086,0.00504,82978.0,82977.0,0.4813731]
[1744390256291,0.1256117,82978.0,82977.0,0.1205731]
[1744390256487,0.1255717,82978.0,82977.0,0.1205731]
[1744390256685,0.1256117,82978.0,82977.0,0.1205731]
[1744390256995,0.2251117,82978.0,82977.0,0.1205731]
[1744390257892,0.2251117,82978.0,82951.0,0.4153]
[1744390257893,0.120592,82965.0,82964.0,0.0602958]
[1744390258098,0.0602945,82967.0,82966.0,0.1205891]
[1744390259099,0.0498,82969.0,82968.0,0.1205862]
[1744390259796,0.04984,82969.0,82968.0,0.1205862]
[1744390261491,4e-05,82969.0,82968.0,0.1205862]
[1744390261704,0.1206247,82969.0,82968.0,0.1205862]
[1744390262492,0.1206247,82969.0,82965.0,0.4813891]
[1744390262493,0.1205891,82966.0,82965.0,0.4813891]
[1744390263001,4e-05,82969.0,82968.0,0.1205862]
[1744390263500,0.0526,82969.0,82968.0,0.1731862]
[1744390263800,0.0526,82969.0,82968.0,0.2212862]
[1744390264199,0.05264,82969.0,82968.0,0.2212862]
[1744390265495,0.05264,82969.0,82968.0,0.1205862]
[1744390265695,0.1732247,82969.0,82968.0,0.1205862]
[1744390265999,0.1732247,82969.0,82965.0,0.8363952]
[1744390266000,0.1205891,82966.0,82965.0,0.8966903]
[1744390266193,0.1205891,82966.0,82965.0,0.8966906]
[1744390266404,0.2173891,82966.0,82965.0,0.5358906]
[1744390266702,0.0968,82966.0,82965.0,0.5358906]
[1744390266899,0.0968,82966.0,82965.0,0.6366906]
[1744390267203,0.09684,82966.0,82965.0,0.6366906]
[1744390267390,0.09684,82966.0,82965.0,0.5858906]
[1744390267595,0.2174291,82966.0,82965.0,0.5358906]
[1744390269595,0.09684,82966.0,82965.0,0.5358906]
[1744390269990,0.2174291,82966.0,82965.0,0.5358906]
[1744390270791,0.09684,82966.0,82965.0,0.5358906]
[1744390271197,0.04914,82966.0,82965.0,0.6326906]
[1744390271393,0.0491,82966.0,82965.0,0.6326906]
[1744390272299,0.04914,82966.0,82965.0,0.5358906]
[1744390272802,0.10214,82966.0,82965.0,0.5358906]
[1744390273001,0.2227291,82966.0,82965.0,0.4153]
[1744390273202,0.04914,82966.0,82965.0,0.8966906]
[1744390273402,0.1255754,82978.0,82977.0,0.1205731]
[1744390274901,0.2893618,82978.0,82977.0,0.1205731]
[1744390275406,0.1687864,82978.0,82977.0,0.1205731]
[1744390276504,0.0555,82978.0,82977.0,0.1205731]
[1744390276709,0.1062,82978.0,82977.0,0.1205731]
[1744390276911,0.2267717,82978.0,82977.0,0.1205731]
[1744390277700,0.0555,82978.0,82977.0,0.1205731]
[1744390277912,0.0555,82978.0,82977.0,0.2230731]
[1744390278109,0.05554,82978.0,82977.0,0.2230731]
[1744390278814,0.10784,82978.0,82977.0,0.1205731]
[1744390279013,0.0602928,82970.0,82959.0,0.0602994]
[1744390279314,0.0602931,82968.0,82965.0,0.5358897]
[1744390279508,0.1205891,82966.0,82965.0,0.5961842]
[1744390279701,0.1205891,82966.0,82965.0,0.4755945]
[1744390279901,0.1692891,82966.0,82965.0,0.4153]
[1744390280206,0.5300891,82966.0,82965.0,0.5358906]
[1744390280603,0.1692891,82966.0,82965.0,0.1205906]
[1744390282106,0.120592,82964.0,82963.0,0.12077345]
[1744390282305,0.120592,82964.0,82963.0,0.00018075]
[1744390286114,0.120592,82964.0,82963.0,5e-08]
[1744390286311,0.120592,82964.0,82936.0,0.28366844]
[1744390286312,0.1206298,82938.0,82937.0,0.00482291]
[1744390287113,0.1206313,82937.0,82936.0,0.21009135]
[1744390287301,0.12985062,82937.0,82936.0,0.21009135]
[1744390287705,0.12985062,82937.0,82928.0,0.00018075]
[1744390287706,0.1206429,82929.0,82928.0,0.00018075]
[1744390288011,0.1206662,82913.0,82912.0,0.21476254]
[1744390288210,0.4814662,82913.0,82912.0,0.21476254]
[1744390288713,0.8422662,82913.0,82912.0,0.21476254]
[1744390288910,0.0603399,82904.0,82900.0,0.45842068]
[1744390289105,0.1206837,82901.0,82900.0,0.45842068]
[1744390289309,0.1206924,82895.0,82894.0,0.42885418]
[1744390289611,0.00018087,82903.0,82894.0,0.42885418]
[1744390289823,0.12086157,82903.0,82902.0,0.1206822]
[1744390290008,0.12090157,82903.0,82902.0,0.1206822]
[1744390290609,0.00022087,82903.0,82902.0,0.1206822]
[1744390291524,0.00018087,82903.0,82902.0,0.2223822]
[1744390292313,0.00022087,82903.0,82902.0,0.2223822]
[1744390292514,0.00018087,82903.0,82902.0,0.2223822]
[1744390292822,0.00022087,82903.0,82902.0,0.2223822]
[1744390293117,0.00018087,82903.0,82902.0,0.2223822]
[1744390293327,0.00022087,82903.0,82902.0,0.2223822]
[1744390295923,0.00022087,82903.0,82902.0,0.1709822]
[1744390296222,0.00022087,82903.0,82902.0,0.1206822]
[1744390296626,0.00022087,82903.0,82902.0,0.2213822]
[1744390297620,0.3608,82920.0,82902.0,0.2213822]
[1744390297621,5.401e-05,82914.0,82913.0,0.1206662]
[1744390297823,5.401e-05,82914.0,82913.0,0.4814662]
[1744390298021,0.2217628,82916.0,82915.0,0.1206633]
[1744390298522,0.1206647,82914.0,82913.0,0.1809968]
[1744390299126,0.2217618,82916.0,82915.0,0.1206633]
[1744390299615,0.2218018,82916.0,82915.0,0.1206633]
[1744390299819,0.10114,82916.0,82915.0,0.1206633]
[1744390300022,0.2218018,82916.0,82915.0,0.1206633]
[1744390300219,0.10114,82916.0,82915.0,0.1206633]
[1744390300422,0.1011,82916.0,82915.0,0.1206633]
[1744390300621,0.10114,82916.0,82915.0,0.1206633]
[1744390301017,4e-05,82916.0,82915.0,0.4814633]
[1744390301424,0.00018087,82922.0,82921.0,0.1206546]
[1744390302227,0.12083397,82922.0,82921.0,0.1206546]
[1744390303024,0.48163397,82922.0,82921.0,0.1206546]
[1744390303431,0.1206647,82914.0,82913.0,0.06051297]
[1744390303622,0.1206647,82914.0,82913.0,0.12084707]
[1744390304029,0.0998,82915.0,82914.0,0.1206647]
[1744390304328,0.00018087,82922.0,82921.0,0.1206546]
[1744390304918,0.04878087,82922.0,82921.0,0.1206546]
[1744390305620,0.16943397,82922.0,82921.0,0.1206546]
[1744390306224,0.04878087,82922.0,82921.0,0.1206546]
[1744390306431,0.00018087,82922.0,82921.0,0.1206546]
[1744390306628,0.00022087,82922.0,82921.0,0.1206546]
[1744390306925,0.00018087,82922.0,82921.0,0.1206546]
[1744390307228,0.12087397,82922.0,82921.0,0.1206546]
[1744390307644,0.05052087,82922.0,82921.0,0.1206546]
[1744390308027,0.17117397,82922.0,82921.0,0.1206546]
[1744390308226,0.00022087,82922.0,82921.0,0.1206546]
[1744390308525,0.00018087,82922.0,82921.0,0.1708546]
[1744390308833,0.00022087,82922.0,82921.0,0.1708546]
[1744390309031,0.00018087,82922.0,82921.0,0.1708546]
[1744390309333,0.00022087,82922.0,82921.0,0.1708546]
[1744390310832,0.00022087,82922.0,82921.0,0.0502]
[1744390313436,0.00022087,82922.0,82917.0,0.3608]
[1744390313634,0.00022087,82922.0,82918.0,0.097]
[1744390316539,0.00018087,82922.0,82918.0,0.097]
[1744390316839,0.00022087,82922.0,82918.0,0.097]
[1744390318145,0.00022087,82922.0,82921.0,0.3608]
[1744390320550,0.00018087,82922.0,82921.0,0.3608]
[1744390321141,0.00022087,82922.0,82921.0,0.3608]
[1744390321944,0.00018087,82922.0,82921.0,0.3608]
[1744390322146,0.00022087,82922.0,82921.0,0.3608]
[1744390324239,0.09652087,82922.0,82921.0,0.3608]
[1744390324442,0.09648087,82922.0,82921.0,0.3608]
[1744390324644,0.09652087,82922.0,82921.0,0.3608]
[1744390325544,0.45732087,82922.0,82903.0,0.3608]
[1744390325947,0.3608,82914.0,82903.0,0.3608]
[1744390326950,0.3608,82920.0,82903.0,0.3608]
[1744390327152,0.0499,82919.0,82917.0,0.3608]
[1744390327445,0.0502,82919.0,82918.0,0.0974]
[1744390327651,0.05024,82919.0,82918.0,0.1459]
[1744390327949,0.00018087,82922.0,82918.0,0.1459]
[1744390328147,4e-05,82919.0,82918.0,0.1459]
[1744390328343,0.05038087,82922.0,82918.0,0.1459]
[1744390328540,4e-05,82919.0,82918.0,0.1459]
[1744390328752,4e-05,82919.0,82918.0,0.15761275]
[1744390329140,4e-05,82919.0,82918.0,0.1459]
[1744390332244,4e-05,82919.0,82917.0,0.3608]
[1744390332544,4e-05,82919.0,82903.0,0.7193082]
[1744390332745,0.08672,82918.0,82903.0,0.7193082]
[1744390333149,0.3608,82912.0,82903.0,0.3585082]
[1744390333442,0.0508,82911.0,82903.0,0.3585082]
[1744390334156,0.4814793,82904.0,82903.0,0.3585082]
[1744390334347,0.5681993,82904.0,82903.0,0.3585082]
[1744390334553,0.08672,82904.0,82903.0,0.4791889]
[1744390334748,0.1206793,82904.0,82903.0,0.4791889]
[1744390334952,0.0508,82905.0,82904.0,0.1206793]
[1744390335150,0.0508,82905.0,82904.0,0.4814793]
[1744390335545,0.1714778,82905.0,82904.0,0.4814793]
[1744390335753,0.1715178,82905.0,82904.0,0.1206793]
[1744390336244,0.05084,82905.0,82904.0,0.1206793]
[1744390336449,0.1715178,82905.0,82904.0,0.1206793]
[1744390336749,0.05084,82905.0,82904.0,0.1206793]
[1744390336945,0.0481,82906.0,82905.0,0.1206778]
[1744390337146,0.0481,82906.0,82903.0,0.1125396]
[1744390337147,0.1206754,82907.0,82906.0,0.1206764]
[1744390337749,0.21621472,82908.0,82907.0,0.1206749]
[1744390338458,0.33688822,82908.0,82907.0,0.1704749]
[1744390338756,0.21621472,82908.0,82907.0,0.1704749]
[1744390339053,0.21621472,82908.0,82907.0,0.5794749]
[1744390339251,0.05867838,82910.0,82909.0,0.120672]
[1744390339453,0.00018087,82922.0,82915.0,0.060331]
[1744390339654,0.00018087,82922.0,82921.0,0.4814546]
[1744390340051,0.00018087,82922.0,82921.0,0.5764546]
[1744390340554,0.00022087,82922.0,82921.0,0.5764546]
[1744390340756,7e-08,82922.0,82921.0,0.6279546]
[1744390340945,1e-08,82926.0,82925.0,0.1206487]
[1744390341150,1e-08,82926.0,82925.0,0.5523687]
[1744390341556,4.001e-05,82926.0,82925.0,0.5523687]
[1744390341952,5.401e-05,82942.0,82941.0,0.1206255]
[1744390342155,5.401e-05,82942.0,82941.0,0.4814255]
[1744390342354,0.00018087,82950.0,82949.0,0.1206138]
[1744390342655,0.00018087,82950.0,82949.0,0.4814138]
[1744390342850,0.00018087,82950.0,82949.0,0.5794138]
[1744390343156,0.00022087,82950.0,82949.0,0.5794138]
[1744390343854,0.00018087,82950.0,82949.0,0.5794138]
[1744390344056,0.00022087,82950.0,82949.0,0.5794138]
[1744390346448,0.00022087,82950.0,82949.0,0.4814138]
[1744390346655,0.12083327,82950.0,82949.0,0.4814138]
[1744390346857,0.12083327,82950.0,82949.0,0.3608]
[1744390347060,0.12083327,82950.0,82942.0,0.5417324]
[1744390347061,0.1206225,82943.0,82942.0,0.5417324]
[1744390347857,0.1206225,82943.0,82942.0,0.3608]
[1744390348058,0.1206225,82943.0,82942.0,0.481424]
[1744390348250,0.0496,82944.0,82943.0,0.1206225]
[1744390348451,0.00018087,82950.0,82949.0,0.1206138]
[1744390348658,0.005,82952.0,82951.0,0.1206109]
[1744390349057,0.1752495,82952.0,82951.0,0.1206109]